[Event "*** Titled Tuesday Blitz"]
[Site "Chess.com"]
[Date "2020.11.03"]
[Round "6"]
[White "ARTHURMOTIVATOR"]
[Black "BJthechessgod"]
[Result "0-1"]
[WhiteElo "2376"]
[BlackElo "2306"]
[TimeControl "180+1"]
[EndTime "11:07:50 PST"]
[Termination "BJthechessgod won by checkmate"]

1. e4 {[%clk 0:02:52.1]} 1... c5 {[%clk 0:03:00.1]} 2. b3 {[%clk 0:02:51.2]}
2... Nc6 {[%clk 0:02:58.8]} 3. Bb2 {[%clk 0:02:51.2]} 3... d6 {[%clk 0:02:58.5]}
4. Bb5 {[%clk 0:02:49.7]} 4... Bd7 {[%clk 0:02:53.8]} 5. d3 {[%clk 0:02:48.1]}
5... a6 {[%clk 0:02:53.7]} 6. Bxc6 {[%clk 0:02:47.6]} 6... Bxc6 {[%clk
0:02:54.6]} 7. Nd2 {[%clk 0:02:47.5]} 7... Nf6 {[%clk 0:02:54.8]} 8. f4 {[%clk
0:02:47.4]} 8... e6 {[%clk 0:02:53.2]} 9. Ngf3 {[%clk 0:02:47.8]} 9... Be7
{[%clk 0:02:52.8]} 10. O-O {[%clk 0:02:48.4]} 10... O-O {[%clk 0:02:52.9]} 11.
Qe1 {[%clk 0:02:48.9]} 11... b5 {[%clk 0:02:50.8]} 12. e5 {[%clk 0:02:47.8]}
12... Nd5 {[%clk 0:02:45.8]} 13. Ne4 {[%clk 0:02:34.4]} 13... dxe5 {[%clk
0:02:37.3]} 14. Nxe5 {[%clk 0:02:30]} 14... Bb7 {[%clk 0:02:36.8]} 15. Qg3
{[%clk 0:02:26.9]} 15... Bf6 {[%clk 0:02:35.7]} 16. Nxf6+ {[%clk 0:02:21.8]}
16... Nxf6 {[%clk 0:02:36.6]} 17. Rae1 {[%clk 0:02:00.3]} 17... Rc8 {[%clk
0:02:26]} 18. Nd7 {[%clk 0:01:45.1]} 18... Qxd7 {[%clk 0:02:05.1]} 19. Bxf6
{[%clk 0:01:43]} 19... g6 {[%clk 0:02:05]} 20. Qg5 {[%clk 0:01:21.8]} 20... Qd5
{[%clk 0:02:00.5]} 21. Re5 {[%clk 0:01:20.7]} 21... h6 {[%clk 0:01:28.4]} 22.
Qh4 {[%clk 0:00:42.5]} 22... Qxg2# {[%clk 0:01:27.1]} 0-1

[Event "*** Titled Tuesday Blitz"]
[Site "Chess.com"]
[Date "2020.11.03"]
[Round "6"]
[White "ZverevLev"]
[Black "xberli"]
[Result "1-0"]
[WhiteElo "2285"]
[BlackElo "2539"]
[TimeControl "180+1"]
[EndTime "11:08:02 PST"]
[Termination "ZverevLev won by resignation"]

1. e4 {[%clk 0:03:00.9]} 1... c5 {[%clk 0:02:58.4]} 2. Nf3 {[%clk 0:03:00]} 2...
d6 {[%clk 0:02:58.5]} 3. d4 {[%clk 0:02:57.7]} 3... cxd4 {[%clk 0:02:59.4]} 4.
Nxd4 {[%clk 0:02:58.2]} 4... Nf6 {[%clk 0:02:59.5]} 5. Nc3 {[%clk 0:02:57.3]}
5... a6 {[%clk 0:03:00]} 6. Bg5 {[%clk 0:02:56.3]} 6... Nbd7 {[%clk 0:02:59.1]}
7. f4 {[%clk 0:02:53.6]} 7... h6 {[%clk 0:02:56]} 8. Bxf6 {[%clk 0:02:51.2]}
8... Nxf6 {[%clk 0:02:56.9]} 9. f5 {[%clk 0:02:44.9]} 9... Qc7 {[%clk
0:02:23.3]} 10. Qf3 {[%clk 0:02:41.7]} 10... e5 {[%clk 0:02:12.9]} 11. fxe6
{[%clk 0:02:33.4]} 11... fxe6 {[%clk 0:02:13.8]} 12. O-O-O {[%clk 0:02:31.6]}
12... Be7 {[%clk 0:02:09.4]} 13. g3 {[%clk 0:02:26.5]} 13... O-O {[%clk
0:01:47.4]} 14. Bh3 {[%clk 0:02:18.4]} 14... Nh7 {[%clk 0:00:32.5]} 15. Qe2
{[%clk 0:02:12.5]} 15... Ng5 {[%clk 0:00:31.8]} 16. Bg4 {[%clk 0:02:09.8]} 16...
Bf6 {[%clk 0:00:29.3]} 17. h4 {[%clk 0:02:07.8]} 17... Bxd4 {[%clk 0:00:28.4]}
18. Rxd4 {[%clk 0:02:05.5]} 18... Nf7 {[%clk 0:00:27.9]} 19. Rhd1 {[%clk
0:02:01.6]} 19... b5 {[%clk 0:00:26.9]} 20. a3 {[%clk 0:01:54]} 20... Rb8 {[%clk
0:00:25.9]} 21. Na2 {[%clk 0:01:52]} 21... Bd7 {[%clk 0:00:25.3]} 22. Nb4 {[%clk
0:01:51]} 22... a5 {[%clk 0:00:25.3]} 23. Na6 {[%clk 0:01:48.5]} 23... Qc5
{[%clk 0:00:25.3]} 24. Nxc5 {[%clk 0:01:47.5]} 1-0

[Event "*** Titled Tuesday Blitz"]
[Site "Chess.com"]
[Date "2020.11.03"]
[Round "6"]
[White "GregShahade"]
[Black "NiranjanNavalgund"]
[Result "1-0"]
[WhiteElo "2648"]
[BlackElo "2448"]
[TimeControl "180+1"]
[EndTime "11:08:11 PST"]
[Termination "GregShahade won by resignation"]

1. e4 {[%clk 0:03:00.9]} 1... c5 {[%clk 0:02:56.3]} 2. Nf3 {[%clk 0:03:01.2]}
2... Nc6 {[%clk 0:02:56]} 3. d4 {[%clk 0:03:01.5]} 3... cxd4 {[%clk 0:02:56.9]}
4. Nxd4 {[%clk 0:03:02.3]} 4... g6 {[%clk 0:02:57.6]} 5. c4 {[%clk 0:03:01.5]}
5... Nf6 {[%clk 0:02:57.4]} 6. Nc3 {[%clk 0:03:01.5]} 6... Nxd4 {[%clk
0:02:57.7]} 7. Qxd4 {[%clk 0:03:01.1]} 7... d6 {[%clk 0:02:58.6]} 8. f3 {[%clk
0:02:59.9]} 8... Bg7 {[%clk 0:02:58.3]} 9. Be3 {[%clk 0:03:00.2]} 9... O-O
{[%clk 0:02:58.6]} 10. Qd2 {[%clk 0:03:00.4]} 10... a5 {[%clk 0:02:58.9]} 11.
Na4 {[%clk 0:02:58.3]} 11... Nd7 {[%clk 0:02:44.3]} 12. O-O-O {[%clk 0:02:56.8]}
12... Qc7 {[%clk 0:02:44.4]} 13. Kb1 {[%clk 0:02:54.9]} 13... Nc5 {[%clk
0:02:44.8]} 14. Nxc5 {[%clk 0:02:25.9]} 14... dxc5 {[%clk 0:02:44.3]} 15. Qd5
{[%clk 0:02:18.7]} 15... b6 {[%clk 0:02:09.7]} 16. Qxa8 {[%clk 0:01:29.9]} 16...
Bb7 {[%clk 0:02:09]} 17. Bf4 {[%clk 0:01:10.7]} 17... Qc6 {[%clk 0:02:03.8]} 18.
Qd8 {[%clk 0:00:53.3]} 18... g5 {[%clk 0:01:35.9]} 19. Qd7 {[%clk 0:00:29]}
19... gxf4 {[%clk 0:01:33.1]} 20. Qxc6 {[%clk 0:00:29.1]} 20... Bxc6 {[%clk
0:01:34]} 21. g3 {[%clk 0:00:27.9]} 21... fxg3 {[%clk 0:01:32]} 22. hxg3 {[%clk
0:00:28.2]} 22... Bd4 {[%clk 0:01:32.9]} 23. Bd3 {[%clk 0:00:27.8]} 23... e5
{[%clk 0:01:32.6]} 24. Rh6 {[%clk 0:00:27.9]} 24... Kg7 {[%clk 0:01:32.3]} 25.
Rxc6 {[%clk 0:00:26.9]} 1-0

[Event "*** Titled Tuesday Blitz"]
[Site "Chess.com"]
[Date "2020.11.03"]
[Round "6"]
[White "Savva09022009"]
[Black "vovachesss"]
[Result "1-0"]
[WhiteElo "2380"]
[BlackElo "2657"]
[TimeControl "180+1"]
[EndTime "11:08:15 PST"]
[Termination "Savva09022009 won by resignation"]

1. d4 {[%clk 0:03:00.9]} 1... e5 {[%clk 0:02:56.1]} 2. dxe5 {[%clk 0:03:00.3]}
2... d6 {[%clk 0:02:56.5]} 3. Nf3 {[%clk 0:02:59.2]} 3... Nc6 {[%clk 0:02:56.2]}
4. e4 {[%clk 0:02:53.8]} 4... Bg4 {[%clk 0:02:53.5]} 5. h3 {[%clk 0:02:51]} 5...
Bxf3 {[%clk 0:02:52.1]} 6. Qxf3 {[%clk 0:02:51.9]} 6... Nxe5 {[%clk 0:02:51.5]}
7. Qd1 {[%clk 0:02:51.6]} 7... Nf6 {[%clk 0:02:51.7]} 8. Bd3 {[%clk 0:02:51.2]}
8... g6 {[%clk 0:02:47.2]} 9. O-O {[%clk 0:02:50.4]} 9... Bg7 {[%clk 0:02:47.8]}
10. f4 {[%clk 0:02:50.7]} 10... Nxd3 {[%clk 0:02:47.9]} 11. cxd3 {[%clk
0:02:51.6]} 11... O-O {[%clk 0:02:48.6]} 12. Nc3 {[%clk 0:02:51.1]} 12... c6
{[%clk 0:02:43.8]} 13. Qf3 {[%clk 0:02:50.8]} 13... d5 {[%clk 0:02:42.2]} 14. e5
{[%clk 0:02:50.7]} 14... Nd7 {[%clk 0:02:41.2]} 15. d4 {[%clk 0:02:51.1]} 15...
Re8 {[%clk 0:02:37.6]} 16. f5 {[%clk 0:02:49.9]} 16... c5 {[%clk 0:02:23.7]} 17.
fxg6 {[%clk 0:02:44.3]} 17... fxg6 {[%clk 0:02:23.7]} 18. Qxd5+ {[%clk
0:02:43.9]} 18... Kh8 {[%clk 0:02:24.4]} 19. Rf7 {[%clk 0:02:20.5]} 19... Nb6
{[%clk 0:02:03.5]} 20. Qxb7 {[%clk 0:02:17.4]} 20... Rb8 {[%clk 0:01:59.7]} 21.
Qxa7 {[%clk 0:02:13.7]} 21... Ra8 {[%clk 0:01:59.7]} 22. Qb7 {[%clk 0:02:03.1]}
22... Rb8 {[%clk 0:01:59.5]} 23. Qf3 {[%clk 0:01:55.2]} 23... cxd4 {[%clk
0:01:58.7]} 24. Ne4 {[%clk 0:01:54.8]} 24... Nc4 {[%clk 0:01:50.1]} 25. Bg5
{[%clk 0:01:33.7]} 25... Nxe5 {[%clk 0:01:13.8]} 26. Qf4 {[%clk 0:01:31.3]}
26... Qd5 {[%clk 0:00:50.9]} 27. Rxg7 {[%clk 0:01:28.7]} 27... Kxg7 {[%clk
0:00:51.8]} 28. Bh6+ {[%clk 0:01:27.4]} 1-0

[Event "*** Titled Tuesday Blitz"]
[Site "Chess.com"]
[Date "2020.11.03"]
[Round "6"]
[White "vova-79"]
[Black "cukin84"]
[Result "1-0"]
[WhiteElo "2484"]
[BlackElo "2074"]
[TimeControl "180+1"]
[EndTime "11:08:22 PST"]
[Termination "vova-79 won by resignation"]

1. d4 {[%clk 0:03:00.9]} 1... f5 {[%clk 0:02:59.1]} 2. Nc3 {[%clk 0:02:47.4]}
2... Nf6 {[%clk 0:02:58.5]} 3. Bg5 {[%clk 0:02:46.2]} 3... e6 {[%clk 0:02:55.9]}
4. e4 {[%clk 0:02:45.2]} 4... fxe4 {[%clk 0:02:55.5]} 5. Nxe4 {[%clk 0:02:44]}
5... Be7 {[%clk 0:02:55.6]} 6. Bxf6 {[%clk 0:02:39.7]} 6... Bxf6 {[%clk
0:02:54.9]} 7. Qh5+ {[%clk 0:02:39.7]} 7... g6 {[%clk 0:02:54]} 8. Qh6 {[%clk
0:02:38.4]} 8... d5 {[%clk 0:02:48.9]} 9. Nxf6+ {[%clk 0:02:34.3]} 9... Qxf6
{[%clk 0:02:48.2]} 10. Nf3 {[%clk 0:02:35.2]} 10... c5 {[%clk 0:02:41.7]} 11.
O-O-O {[%clk 0:02:29.7]} 11... cxd4 {[%clk 0:02:40.3]} 12. Nxd4 {[%clk
0:02:28.2]} 12... Nc6 {[%clk 0:02:39.5]} 13. Qe3 {[%clk 0:01:53]} 13... Bd7
{[%clk 0:02:32.2]} 14. f4 {[%clk 0:01:45.7]} 14... O-O {[%clk 0:02:29.7]} 15. g3
{[%clk 0:01:44.5]} 15... Rae8 {[%clk 0:02:17.7]} 16. Bh3 {[%clk 0:01:43]} 16...
Qg7 {[%clk 0:01:57.1]} 17. Rhe1 {[%clk 0:01:26]} 17... Nxd4 {[%clk 0:01:54.3]}
18. Qxd4 {[%clk 0:01:24]} 18... e5 {[%clk 0:01:53.1]} 19. Qxd5+ {[%clk
0:01:22.4]} 19... Kh8 {[%clk 0:01:43.4]} 20. Bxd7 {[%clk 0:01:16.3]} 20... Rd8
{[%clk 0:01:40]} 21. fxe5 {[%clk 0:01:15.2]} 21... Rf2 {[%clk 0:01:01.4]} 22. e6
{[%clk 0:01:09.2]} 1-0

[Event "*** Titled Tuesday Blitz"]
[Site "Chess.com"]
[Date "2020.11.03"]
[Round "6"]
[White "dretch"]
[Black "Shota_Azaladze"]
[Result "1-0"]
[WhiteElo "2825"]
[BlackElo "2623"]
[TimeControl "180+1"]
[EndTime "11:08:23 PST"]
[Termination "dretch won by resignation"]

1. d4 {[%clk 0:03:00.9]} 1... Nf6 {[%clk 0:02:59.5]} 2. c4 {[%clk 0:03:01.2]}
2... d6 {[%clk 0:02:59.3]} 3. Nf3 {[%clk 0:03:01]} 3... Bg4 {[%clk 0:02:58]} 4.
Qb3 {[%clk 0:02:56.5]} 4... Qc8 {[%clk 0:02:51.7]} 5. h3 {[%clk 0:02:55.9]} 5...
Bf5 {[%clk 0:02:48.8]} 6. g4 {[%clk 0:02:55.5]} 6... Bg6 {[%clk 0:02:48.5]} 7.
Bg2 {[%clk 0:02:54.6]} 7... Nc6 {[%clk 0:02:47.6]} 8. d5 {[%clk 0:02:52.1]} 8...
Nb8 {[%clk 0:02:45.9]} 9. Nc3 {[%clk 0:02:45.9]} 9... Nbd7 {[%clk 0:02:43.6]}
10. Nh4 {[%clk 0:02:42.9]} 10... Nc5 {[%clk 0:02:43]} 11. Qd1 {[%clk 0:02:37.1]}
11... e5 {[%clk 0:02:34.8]} 12. dxe6 {[%clk 0:02:29.3]} 12... Qxe6 {[%clk
0:02:32.1]} 13. Nd5 {[%clk 0:02:26.8]} 13... Nxd5 {[%clk 0:02:28.9]} 14. Bxd5
{[%clk 0:02:26.9]} 14... Qf6 {[%clk 0:02:26.1]} 15. g5 {[%clk 0:02:19.5]} 15...
Qe7 {[%clk 0:02:07]} 16. Nxg6 {[%clk 0:01:53]} 16... hxg6 {[%clk 0:02:05.9]} 17.
b4 {[%clk 0:01:53.5]} 17... c6 {[%clk 0:02:05.2]} 18. bxc5 {[%clk 0:01:53.7]}
18... cxd5 {[%clk 0:02:05.2]} 19. Qxd5 {[%clk 0:01:54]} 19... O-O-O {[%clk
0:01:02]} 20. c6 {[%clk 0:01:50.7]} 20... b6 {[%clk 0:01:00.9]} 21. a4 {[%clk
0:01:49.6]} 21... Qe5 {[%clk 0:00:59.5]} 22. Ra3 {[%clk 0:01:40.3]} 22... Be7
{[%clk 0:00:53.3]} 23. a5 {[%clk 0:01:37.9]} 23... Rh4 {[%clk 0:00:24.9]} 24.
axb6 {[%clk 0:01:31.5]} 24... Qxd5 {[%clk 0:00:24.2]} 25. cxd5 {[%clk
0:01:26.5]} 25... axb6 {[%clk 0:00:23.8]} 26. Ra8+ {[%clk 0:01:26.3]} 26... Kc7
{[%clk 0:00:24]} 27. Ra7+ {[%clk 0:01:26.6]} 27... Kc8 {[%clk 0:00:24.2]} 28.
Rxe7 {[%clk 0:01:27.5]} 1-0

[Event "*** Titled Tuesday Blitz"]
[Site "Chess.com"]
[Date "2020.11.03"]
[Round "6"]
[White "ApacheSVD"]
[Black "vinniethepooh"]
[Result "1-0"]
[WhiteElo "2438"]
[BlackElo "2572"]
[TimeControl "180+1"]
[EndTime "11:08:23 PST"]
[Termination "ApacheSVD won on time"]

1. e4 {[%clk 0:03:00.9]} 1... c5 {[%clk 0:03:00.3]} 2. Nf3 {[%clk 0:03:01.2]}
2... d6 {[%clk 0:03:00.6]} 3. d4 {[%clk 0:03:01.4]} 3... cxd4 {[%clk 0:03:01.5]}
4. Nxd4 {[%clk 0:03:02.3]} 4... Nf6 {[%clk 0:03:01.4]} 5. Nc3 {[%clk 0:03:03]}
5... a6 {[%clk 0:03:01.9]} 6. Qf3 {[%clk 0:03:03.5]} 6... g6 {[%clk 0:02:45]} 7.
h3 {[%clk 0:03:02.5]} 7... Bg7 {[%clk 0:02:45.1]} 8. Be3 {[%clk 0:03:03.1]} 8...
O-O {[%clk 0:02:45.3]} 9. O-O-O {[%clk 0:03:02.5]} 9... e5 {[%clk 0:02:30.8]}
10. Nb3 {[%clk 0:02:59.8]} 10... Be6 {[%clk 0:02:31]} 11. g4 {[%clk 0:02:56.5]}
11... Nc6 {[%clk 0:02:23.4]} 12. g5 {[%clk 0:02:55.5]} 12... Nh5 {[%clk
0:02:20.9]} 13. h4 {[%clk 0:02:49.2]} 13... Rc8 {[%clk 0:02:18.4]} 14. Bc5
{[%clk 0:02:46.9]} 14... Bxb3 {[%clk 0:01:55]} 15. axb3 {[%clk 0:02:44.3]} 15...
Qa5 {[%clk 0:01:45.1]} 16. Be3 {[%clk 0:02:10.4]} 16... Nd4 {[%clk 0:01:20.3]}
17. Bxd4 {[%clk 0:02:04.1]} 17... exd4 {[%clk 0:01:19.6]} 18. Nd5 {[%clk
0:02:04.2]} 18... Qa1+ {[%clk 0:00:59.6]} 19. Kd2 {[%clk 0:02:03.5]} 19... Qxb2
{[%clk 0:01:00.4]} 20. Bd3 {[%clk 0:02:04.1]} 20... Rfe8 {[%clk 0:00:46.9]} 21.
Ra1 {[%clk 0:01:58.3]} 21... Rxc2+ {[%clk 0:00:04.7]} 22. Bxc2 {[%clk
0:01:58.6]} 22... Rc8 {[%clk 0:00:05]} 23. Qd3 {[%clk 0:01:55.3]} 23... Be5
{[%clk 0:00:03.9]} 24. Rhb1 {[%clk 0:01:51.6]} 1-0

[Event "*** Titled Tuesday Blitz"]
[Site "Chess.com"]
[Date "2020.11.03"]
[Round "6"]
[White "indfraeng"]
[Black "Mikhail_Golubev"]
[Result "0-1"]
[WhiteElo "2355"]
[BlackElo "2559"]
[TimeControl "180+1"]
[EndTime "11:08:27 PST"]
[Termination "Mikhail_Golubev won by resignation"]

1. d4 {[%clk 0:03:00.9]} 1... Nf6 {[%clk 0:02:59.1]} 2. c4 {[%clk 0:03:01.5]}
2... g6 {[%clk 0:02:58.1]} 3. g3 {[%clk 0:03:01.9]} 3... Bg7 {[%clk 0:02:58.7]}
4. Bg2 {[%clk 0:03:02.5]} 4... O-O {[%clk 0:02:59.2]} 5. Nc3 {[%clk 0:03:03.2]}
5... d6 {[%clk 0:02:59.5]} 6. Nf3 {[%clk 0:03:03.7]} 6... Nbd7 {[%clk 0:03:00]}
7. O-O {[%clk 0:03:04.4]} 7... e5 {[%clk 0:03:00.2]} 8. e4 {[%clk 0:03:05.1]}
8... exd4 {[%clk 0:02:58.4]} 9. Nxd4 {[%clk 0:03:06]} 9... Re8 {[%clk
0:02:58.8]} 10. h3 {[%clk 0:03:06.6]} 10... Nc5 {[%clk 0:02:58.1]} 11. Re1
{[%clk 0:03:07]} 11... a6 {[%clk 0:02:56.9]} 12. Rb1 {[%clk 0:03:07.1]} 12...
Rb8 {[%clk 0:02:50.4]} 13. b3 {[%clk 0:03:05.3]} 13... Bd7 {[%clk 0:02:44.5]}
14. Bb2 {[%clk 0:03:04.9]} 14... Qc8 {[%clk 0:02:41.5]} 15. Kh2 {[%clk
0:03:02.6]} 15... Re5 {[%clk 0:02:41.4]} 16. g4 {[%clk 0:02:01]} 16... Nxg4+
{[%clk 0:01:30.9]} 17. hxg4 {[%clk 0:02:01.9]} 17... Bxg4 {[%clk 0:01:31.1]} 18.
f3 {[%clk 0:01:58.6]} 18... Rh5+ {[%clk 0:01:27.9]} 19. Kg1 {[%clk 0:01:57.4]}
19... Bh3 {[%clk 0:01:24.5]} 20. Nd5 {[%clk 0:01:51.5]} 20... Kf8 {[%clk
0:01:08.4]} 21. Qd2 {[%clk 0:01:48.1]} 21... c6 {[%clk 0:00:51.6]} 22. Ne3
{[%clk 0:01:39.5]} 22... Bxg2 {[%clk 0:00:48.6]} 23. Qxg2 {[%clk 0:01:37.6]}
23... Nd3 {[%clk 0:00:48.2]} 24. Red1 {[%clk 0:01:31.3]} 24... Nf4 {[%clk
0:00:45.2]} 25. Qg4 {[%clk 0:01:29.4]} 25... Rg5 {[%clk 0:00:43.2]} 26. Ne6+
{[%clk 0:01:22.5]} 26... Nxe6 {[%clk 0:00:41.3]} 27. Qxg5 {[%clk 0:01:19.9]}
27... Nxg5 {[%clk 0:00:40.7]} 28. Kf2 {[%clk 0:01:19.7]} 28... Bxb2 {[%clk
0:00:37.9]} 29. Rxb2 {[%clk 0:01:20.6]} 29... Qh3 {[%clk 0:00:37.4]} 30. Rg1
{[%clk 0:01:20]} 30... Qxf3+ {[%clk 0:00:37.3]} 0-1

[Event "*** Titled Tuesday Blitz"]
[Site "Chess.com"]
[Date "2020.11.03"]
[Round "6"]
[White "annacramling"]
[Black "maicolbenavides"]
[Result "1-0"]
[WhiteElo "1991"]
[BlackElo "2202"]
[TimeControl "180+1"]
[EndTime "11:08:30 PST"]
[Termination "annacramling won by resignation"]

1. d4 {[%clk 0:03:00.9]} 1... Nf6 {[%clk 0:02:58]} 2. c4 {[%clk 0:03:01]} 2...
c5 {[%clk 0:02:54.8]} 3. d5 {[%clk 0:03:00.5]} 3... b5 {[%clk 0:02:53.9]} 4.
cxb5 {[%clk 0:03:00.8]} 4... a6 {[%clk 0:02:53]} 5. Nc3 {[%clk 0:03:01]} 5... g6
{[%clk 0:02:50.2]} 6. e4 {[%clk 0:03:00]} 6... Bg7 {[%clk 0:02:48.6]} 7. e5
{[%clk 0:02:53.4]} 7... Ng8 {[%clk 0:02:45.2]} 8. Nf3 {[%clk 0:02:40.9]} 8... d6
{[%clk 0:02:43.6]} 9. e6 {[%clk 0:02:33.9]} 9... fxe6 {[%clk 0:02:35.6]} 10.
dxe6 {[%clk 0:02:33.4]} 10... Bxe6 {[%clk 0:02:18.6]} 11. Ng5 {[%clk 0:02:32.2]}
11... Qd7 {[%clk 0:02:02.7]} 12. Qf3 {[%clk 0:02:16.3]} 12... Ra7 {[%clk
0:01:56.8]} 13. Be2 {[%clk 0:01:07]} 13... Rc7 {[%clk 0:01:05.1]} 14. bxa6
{[%clk 0:00:44.3]} 14... Nf6 {[%clk 0:00:49.6]} 15. a7 {[%clk 0:00:31.2]} 1-0

[Event "*** Titled Tuesday Blitz"]
[Site "Chess.com"]
[Date "2020.11.03"]
[Round "6"]
[White "Rud_Makarian"]
[Black "Andreikka"]
[Result "0-1"]
[WhiteElo "2771"]
[BlackElo "2919"]
[TimeControl "180+1"]
[EndTime "11:08:40 PST"]
[Termination "Andreikka won by resignation"]

1. d4 {[%clk 0:03:00.9]} 1... Nf6 {[%clk 0:02:59.4]} 2. c4 {[%clk 0:03:01.3]}
2... e6 {[%clk 0:02:59]} 3. Nf3 {[%clk 0:03:01.7]} 3... d5 {[%clk 0:02:58.8]} 4.
Nc3 {[%clk 0:03:01.9]} 4... Nbd7 {[%clk 0:02:58.2]} 5. cxd5 {[%clk 0:02:59.7]}
5... exd5 {[%clk 0:02:58.4]} 6. Bf4 {[%clk 0:02:57]} 6... c6 {[%clk 0:02:54.5]}
7. h3 {[%clk 0:02:56.7]} 7... Nb6 {[%clk 0:02:53.6]} 8. e3 {[%clk 0:02:49.3]}
8... Bd6 {[%clk 0:02:54.2]} 9. Bd3 {[%clk 0:02:47.3]} 9... O-O {[%clk
0:02:52.9]} 10. O-O {[%clk 0:02:46.8]} 10... h6 {[%clk 0:02:52.1]} 11. Qc2
{[%clk 0:02:46.1]} 11... Be6 {[%clk 0:02:50.9]} 12. Ne5 {[%clk 0:02:44.2]} 12...
Rc8 {[%clk 0:02:50.9]} 13. Rad1 {[%clk 0:02:39.2]} 13... Qe7 {[%clk 0:02:45.2]}
14. Bh2 {[%clk 0:02:35]} 14... c5 {[%clk 0:02:28.3]} 15. Qb1 {[%clk 0:02:26.2]}
15... a6 {[%clk 0:02:19]} 16. dxc5 {[%clk 0:02:17.9]} 16... Bxc5 {[%clk
0:02:19.1]} 17. Ne2 {[%clk 0:02:17]} 17... Nc4 {[%clk 0:02:16.7]} 18. Nd4 {[%clk
0:01:51.3]} 18... Nd6 {[%clk 0:02:04.6]} 19. a3 {[%clk 0:01:34.2]} 19... Nde4
{[%clk 0:02:03]} 20. Nef3 {[%clk 0:01:29.3]} 20... Bd7 {[%clk 0:02:01.5]} 21.
Be5 {[%clk 0:01:24.8]} 21... Rfe8 {[%clk 0:01:48.6]} 22. Ne2 {[%clk 0:01:22.5]}
22... Ng5 {[%clk 0:01:41.8]} 23. Bxf6 {[%clk 0:00:32.9]} 23... Nxf3+ {[%clk
0:01:40.4]} 24. gxf3 {[%clk 0:00:33.8]} 24... Qxf6 {[%clk 0:01:40.8]} 25. Nf4
{[%clk 0:00:34.5]} 25... d4 {[%clk 0:01:39]} 26. Bh7+ {[%clk 0:00:12]} 26... Kh8
{[%clk 0:01:38.9]} 27. Nd3 {[%clk 0:00:04.7]} 27... Bxh3 {[%clk 0:01:34.5]} 28.
Nxc5 {[%clk 0:00:04.3]} 0-1

[Event "*** Titled Tuesday Blitz"]
[Site "Chess.com"]
[Date "2020.11.03"]
[Round "6"]
[White "serhanberat_ozdemir"]
[Black "Semetey"]
[Result "0-1"]
[WhiteElo "2390"]
[BlackElo "2569"]
[TimeControl "180+1"]
[EndTime "11:08:53 PST"]
[Termination "Semetey won on time"]

1. e4 {[%clk 0:02:56.3]} 1... e5 {[%clk 0:02:57.9]} 2. Nf3 {[%clk 0:02:55.6]}
2... Nc6 {[%clk 0:02:58]} 3. d4 {[%clk 0:02:56.2]} 3... exd4 {[%clk 0:02:57.7]}
4. Bc4 {[%clk 0:02:56.9]} 4... Nf6 {[%clk 0:02:54.8]} 5. e5 {[%clk 0:02:57.8]}
5... d5 {[%clk 0:02:54.7]} 6. Bb5 {[%clk 0:02:58.2]} 6... Ne4 {[%clk 0:02:54.1]}
7. Nxd4 {[%clk 0:02:58.7]} 7... Bd7 {[%clk 0:02:52.7]} 8. Bxc6 {[%clk
0:02:59.3]} 8... bxc6 {[%clk 0:02:52.6]} 9. O-O {[%clk 0:02:59.9]} 9... Bc5
{[%clk 0:02:51.8]} 10. f3 {[%clk 0:03:00]} 10... Ng5 {[%clk 0:02:51.8]} 11. f4
{[%clk 0:03:00.6]} 11... Ne6 {[%clk 0:02:51.4]} 12. Be3 {[%clk 0:02:58]} 12...
Bb6 {[%clk 0:02:40.3]} 13. Nc3 {[%clk 0:02:39.4]} 13... Nxd4 {[%clk 0:02:38.2]}
14. Bxd4 {[%clk 0:02:35.3]} 14... c5 {[%clk 0:02:38.6]} 15. Bf2 {[%clk
0:02:34.1]} 15... c6 {[%clk 0:02:36]} 16. Qf3 {[%clk 0:02:12.6]} 16... Bf5
{[%clk 0:02:29.5]} 17. g4 {[%clk 0:02:04.7]} 17... Bd7 {[%clk 0:02:17.6]} 18. f5
{[%clk 0:01:54.3]} 18... O-O {[%clk 0:02:15.7]} 19. Rae1 {[%clk 0:01:44.9]}
19... c4 {[%clk 0:02:07.6]} 20. f6 {[%clk 0:01:32.2]} 20... g6 {[%clk
0:02:06.1]} 21. Qf4 {[%clk 0:01:23.1]} 21... Kh8 {[%clk 0:02:02.1]} 22. Kh1
{[%clk 0:00:40.2]} 22... Qc8 {[%clk 0:01:53.6]} 23. Bxb6 {[%clk 0:00:37.5]}
23... axb6 {[%clk 0:01:53.3]} 24. Qh6 {[%clk 0:00:20.2]} 24... Rg8 {[%clk
0:01:52.9]} 25. g5 {[%clk 0:00:07.1]} 25... Qf8 {[%clk 0:01:49.3]} 26. Qh4
{[%clk 0:00:05.1]} 26... h5 {[%clk 0:01:48.8]} 27. gxh6 {[%clk 0:00:04.2]} 27...
Kh7 {[%clk 0:01:48.3]} 28. Nd1 {[%clk 0:00:02.5]} 28... Rxa2 {[%clk 0:01:38.7]}
29. Nf2 {[%clk 0:00:01.4]} 29... Qc8 {[%clk 0:01:32.2]} 0-1

[Event "*** Titled Tuesday Blitz"]
[Site "Chess.com"]
[Date "2020.11.03"]
[Round "6"]
[White "AldokhinIvan"]
[Black "1stSecond"]
[Result "1-0"]
[WhiteElo "2605"]
[BlackElo "2755"]
[TimeControl "180+1"]
[EndTime "11:08:56 PST"]
[Termination "AldokhinIvan won by resignation"]

1. e4 {[%clk 0:03:00.9]} 1... c6 {[%clk 0:02:56.2]} 2. Nc3 {[%clk 0:03:00.3]}
2... d5 {[%clk 0:02:56.4]} 3. d4 {[%clk 0:03:00.8]} 3... dxe4 {[%clk 0:02:55.2]}
4. Nxe4 {[%clk 0:03:01.2]} 4... Nf6 {[%clk 0:02:55.9]} 5. Nxf6+ {[%clk
0:03:01.3]} 5... exf6 {[%clk 0:02:56.8]} 6. c3 {[%clk 0:03:01.8]} 6... Bd6
{[%clk 0:02:57.3]} 7. Bd3 {[%clk 0:03:02.4]} 7... O-O {[%clk 0:02:55.5]} 8. Ne2
{[%clk 0:03:02.9]} 8... h5 {[%clk 0:02:55.4]} 9. O-O {[%clk 0:02:53.9]} 9... Re8
{[%clk 0:02:55.1]} 10. h3 {[%clk 0:02:46.8]} 10... Qc7 {[%clk 0:02:54.5]} 11.
Ng3 {[%clk 0:02:24.6]} 11... h4 {[%clk 0:02:27.1]} 12. Ne4 {[%clk 0:02:22.9]}
12... Bh2+ {[%clk 0:02:12]} 13. Kh1 {[%clk 0:02:21.9]} 13... f5 {[%clk
0:02:12.5]} 14. Ng5 {[%clk 0:02:15]} 14... g6 {[%clk 0:02:05.7]} 15. Bc4 {[%clk
0:01:54.1]} 15... Re7 {[%clk 0:02:00.6]} 16. Re1 {[%clk 0:01:40.7]} 16... Bd6
{[%clk 0:01:32.7]} 17. Rxe7 {[%clk 0:01:00]} 17... Bxe7 {[%clk 0:01:32.6]} 18.
Nxf7 {[%clk 0:00:55.9]} 18... Kg7 {[%clk 0:01:30]} 19. Qd2 {[%clk 0:00:47.5]}
19... f4 {[%clk 0:01:26.6]} 20. Qxf4 {[%clk 0:00:41.8]} 20... Qxf4 {[%clk
0:01:25.2]} 21. Bxf4 {[%clk 0:00:42.3]} 21... b5 {[%clk 0:01:25.6]} 22. Bb3
{[%clk 0:00:41.8]} 22... Nd7 {[%clk 0:01:24.1]} 23. Re1 {[%clk 0:00:40]} 23...
Bf6 {[%clk 0:01:23.8]} 24. Nd6 {[%clk 0:00:40]} 24... Ba6 {[%clk 0:01:20]} 25.
Ne8+ {[%clk 0:00:34.4]} 25... Kh7 {[%clk 0:01:12.7]} 26. Nxf6+ {[%clk
0:00:30.4]} 26... Nxf6 {[%clk 0:01:13.6]} 27. Re7+ {[%clk 0:00:30.7]} 27... Kh8
{[%clk 0:01:14.2]} 28. Be5 {[%clk 0:00:30.9]} 28... Rf8 {[%clk 0:01:14.6]} 29.
Re6 {[%clk 0:00:21]} 29... Kg7 {[%clk 0:01:14.7]} 30. Rxc6 {[%clk 0:00:20.7]}
30... Bb7 {[%clk 0:01:14.5]} 31. Rc7+ {[%clk 0:00:20.4]} 1-0